bitfinex/quotes_SOLUSD_20251218
["timestamp","ask_amount","ask_price","bid_price","bid_amount"]
[1766055852017,8.07297973,123.87,123.81,0.64]
[1766055852213,0.72,123.84,123.81,9.48]
[1766055852742,0.72,123.84,123.81,13.24563916]
[1766055852918,0.68,123.85,123.82,0.64]
[1766055853418,0.68,123.85,123.82,8.71617503]
[1766055853620,0.68,123.87,123.83,3.76563916]
[1766055853826,0.68,123.87,123.82,28.26677428]
[1766055854037,0.68,123.85,123.81,17.55655662]
[1766055854211,0.68,123.84,123.81,8.84]
[1766055854623,0.68,123.84,123.81,16.91669301]
[1766055855512,0.68,123.83,123.81,8.84]
[1766055855833,0.68,123.82,123.81,8.84]
[1766055856036,0.68,123.82,123.79,17.55786242]
[1766055856815,0.68,123.82,123.79,19.96575752]
[1766055860435,0.68,123.82,123.79,17.55786242]
[1766055860633,0.68,123.82,123.79,11.2478951]
[1766055861138,0.68,123.82,123.79,8.84]
[1766055861350,0.68,123.82,123.79,9.48]
[1766055861718,0.68,123.82,123.79,11.8878951]
[1766055861924,2.4078951,123.84,123.79,19.32591748]
[1766055862145,0.68,123.84,123.8,2.4078951]
[1766055862329,0.68,123.84,123.8,3.0478951]
[1766055863441,0.68,123.84,123.8,11.12536152]
[1766055864259,0.68,123.84,123.8,8.71746642]
[1766055866629,0.68,123.85,123.82,0.64]
[1766055868930,0.68,123.85,123.82,3.0478951]
[1766055869833,0.68,123.85,123.82,2.4078951]
[1766055870358,0.68,123.85,123.81,11.12452221]
[1766055870730,0.68,123.85,123.81,8.71662711]
[1766055871032,0.68,123.85,123.81,11.12452221]
[1766055872957,0.68,123.85,123.81,8.71662711]
[1766055874631,0.68,123.85,123.81,8.07662711]
[1766055875232,0.68,123.85,123.81,8.71662711]
[1766055875866,3.0878951,123.85,123.81,8.71662711]
[1766055876045,0.68,123.84,123.81,8.71662711]
[1766055876356,0.68,123.83,123.79,9.48]
[1766055876546,0.68,123.83,123.79,8.84]
[1766055876547,0.68,123.82,123.79,8.84]
[1766055876751,0.68,123.82,123.79,9.48]
[1766055877339,0.68,123.82,123.79,17.55789431]
[1766055878867,3.0878951,123.82,123.79,17.55789431]
[1766055879065,0.68,123.82,123.79,17.55789431]
[1766055879248,3.0878951,123.82,123.79,17.55789431]
[1766055880358,2.4078951,123.82,123.79,16.91789431]
[1766055880554,0.53,123.81,123.79,16.91789431]
[1766055880763,2.4078951,123.81,123.77,8.07907932]
[1766055880940,2.4078951,123.81,123.77,17.63907932]
[1766055881769,2.4078951,123.81,123.78,0.72]
[1766055882561,3.1278951,123.81,123.78,8.79883812]
[1766055882940,0.72,123.8,123.78,8.79883812]
[1766055883141,0.72,123.8,123.78,8.07883812]
[1766055883334,0.72,123.8,123.77,8.84]
[1766055883962,0.72,123.79,123.77,8.84]
[1766055884476,0.72,123.78,123.75,8.08053627]
[1766055884766,0.72,123.78,123.75,17.63053627]
[1766055884943,0.72,123.78,123.75,9.55]
[1766055885350,0.72,123.77,123.75,8.84]
[1766055887772,0.72,123.76,123.75,8.84]
[1766055887955,2.4078951,123.76,123.73,8.84]
[1766055888156,8.07968072,123.77,123.71,8.18314778]
[1766055888157,0.72,123.73,123.71,0.1]
[1766055888561,3.1278951,123.76,123.72,0.71]
[1766055888766,0.72,123.75,123.72,0.71]
[1766055889068,0.72,123.75,123.72,11.9578951]
[1766055889253,0.72,123.76,123.73,0.71]
[1766055890888,2.4078951,123.75,123.72,8.84]
[1766055891188,0.72,123.75,123.72,8.84]
[1766055891391,0.72,123.74,123.71,0.1]
[1766055891584,2.4078951,123.72,123.67,0.71]
[1766055891886,5.42046025,123.75,123.67,8.79583834]
[1766055892068,25.62293453,123.75,123.68,0.71]
[1766055892270,2.4078951,123.72,123.68,0.71]
[1766055892467,2.4078951,123.73,123.68,2.4078951]
[1766055892670,2.4078951,123.73,123.69,0.71]
[1766055893308,2.4078951,123.71,123.67,8.79583834]
[1766055893603,2.9778951,123.71,123.68,0.71]
[1766055894165,2.4078951,123.7,123.68,0.71]
[1766055894370,2.4078951,123.7,123.67,0.71]
[1766055895386,0.03,123.68,123.66,9.55]
[1766055895888,0.03,123.68,123.67,0.71]
[1766055897093,2.4378951,123.68,123.66,8.84]
[1766055897393,2.9778951,123.68,123.66,8.84]
[1766055898694,0.03,123.68,123.66,8.84]
[1766055899207,0.03,123.68,123.66,9.55]
[1766055899580,0.03,123.68,123.67,0.71]
[1766055900303,29.04483553,123.74,123.67,0.71]
[1766055900304,2.4078951,123.73,123.67,2.4078951]
[1766055900495,8.65176217,123.74,123.69,0.71]
[1766055900698,2.4078951,123.73,123.69,0.71]
[1766055900889,0.57,123.74,123.7,0.71]
[1766055901090,2.4078951,123.74,123.7,0.71]
[1766055901296,8.08130665,123.75,123.7,0.71]
[1766055901297,2.9778951,123.73,123.7,0.71]
[1766055901810,2.4078951,123.71,123.69,8.84]
[1766055902122,2.9778951,123.71,123.68,0.71]
[1766055903307,0.57,123.72,123.68,0.71]
[1766055903609,2.9778951,123.72,123.68,0.71]
[1766055903795,2.4078951,123.71,123.68,0.71]
[1766055903995,2.4078951,123.73,123.69,0.71]
[1766055904189,2.9778951,123.73,123.69,0.71]
[1766055904510,2.4078951,123.74,123.69,8.08438361]
[1766055904717,2.4078951,123.75,123.71,0.71]
[1766055905086,2.9778951,123.75,123.71,0.71]
[1766055905290,2.4078951,123.75,123.71,0.71]
[1766055905511,2.9778951,123.75,123.71,0.71]
[1766055905714,2.4078951,123.75,123.71,0.71]
[1766055906314,8.65029064,123.76,123.71,0.71]
[1766055906498,2.4078951,123.75,123.71,0.71]
[1766055906819,2.9778951,123.75,123.71,0.71]
[1766055908127,0.57,123.75,123.71,0.71]
[1766055908307,2.9778951,123.75,123.71,0.71]
[1766055908635,0.57,123.75,123.72,2.4078951]
[1766055908803,0.57,123.75,123.72,3.1178951]
[1766055909332,0.57,123.75,123.72,0.71]
[1766055909512,0.57,123.76,123.73,3.1178951]
[1766055909823,0.57,123.75,123.71,0.71]
[1766055910016,0.57,123.75,123.72,3.1178951]
[1766055914504,0.57,123.75,123.72,0.71]
[1766055914704,0.57,123.75,123.72,3.1178951]
[1766055915415,0.57,123.75,123.72,4.47736961]
[1766055916244,0.57,123.75,123.72,4.47738472]
[1766055917236,12.2711298,123.77,123.72,3.76738472]
[1766055917440,4.7615436,123.77,123.74,0.71]
[1766055917739,0.57,123.76,123.73,0.71]
[1766055918309,0.57,123.76,123.73,4.47738472]
[1766055918711,0.57,123.76,123.73,0.71]
[1766055920706,4.7615436,123.77,123.74,0.71]
[1766055921451,4.1915436,123.77,123.76,0.71]
[1766055921653,0.57,123.79,123.76,0.71]
[1766055922026,0.57,123.79,123.75,3.76738472]
[1766055922221,0.57,123.79,123.75,4.47738472]
[1766055922416,0.57,123.79,123.76,4.47738472]
[1766055922819,4.79082881,123.8,123.77,4.47738472]
[1766055923022,4.22082881,123.8,123.77,4.47738472]
[1766055923318,4.79082881,123.8,123.77,4.47738472]
[1766055923548,4.79082881,123.8,123.77,0.71]
[1766055923928,4.79082881,123.8,123.77,4.47738472]
[1766055924136,4.79082881,123.8,123.77,0.71]
[1766055924678,4.79082881,123.8,123.77,4.47738472]
[1766055925625,0.57,123.79,123.77,3.76738472]
[1766055925827,4.79082881,123.8,123.77,4.47738472]
[1766055926940,0.57,123.8,123.77,4.47738472]
[1766055927727,0.57,123.81,123.78,0.71]
[1766055928341,4.22017536,123.82,123.79,3.76738472]
[1766055928553,0.57,123.83,123.8,0.71]
[1766055928746,0.57,123.83,123.79,4.47738472]
[1766055929145,0.57,123.82,123.79,4.47738472]
[1766055931284,0.57,123.82,123.79,0.71]
[1766055933583,3.76738472,123.81,123.77,0.71]
[1766055933774,0.57,123.8,123.77,0.71]
[1766055935580,0.57,123.8,123.77,4.47738472]
[1766055936389,0.57,123.79,123.76,0.71]
[1766055936591,0.57,123.79,123.75,11.84790958]
[1766055936592,0.57,123.79,123.75,12.55790958]
[1766055937102,0.57,123.79,123.75,8.79052486]
[1766055937284,0.57,123.79,123.75,4.47738472]
[1766055937487,0.57,123.79,123.76,0.71]
[1766055938399,0.57,123.79,123.76,4.47738472]
[1766055942589,0.57,123.77,123.73,0.66]
[1766055942785,0.57,123.76,123.73,0.66]
[1766055947097,8.64966734,123.77,123.73,3.76738472]
[1766055947415,0.57,123.76,123.74,0.66]
[1766055948115,0.57,123.8,123.76,0.66]
[1766055948490,0.57,123.79,123.76,0.66]
[1766055949216,8.07826156,123.79,123.76,0.66]
[1766055949395,8.6478849,123.8,123.76,0.66]
[1766055950316,8.6478849,123.8,123.77,0.66]
[1766055951120,0.57,123.79,123.76,0.66]
[1766055951311,0.57,123.79,123.76,4.42738472]
[1766055952216,8.07830606,123.79,123.75,4.42738472]
[1766055952515,0.57,123.78,123.75,0.66]
[1766055953809,0.57,123.78,123.75,4.42738472]
[1766055954022,8.64830606,123.79,123.76,0.66]
[1766055954322,8.64761337,123.8,123.76,0.66]
[1766055954519,8.64761337,123.8,123.77,0.66]
[1766055955198,8.07761337,123.8,123.76,3.76738472]
[1766055955393,0.57,123.79,123.76,4.42738472]
[1766055955619,0.57,123.8,123.77,0.66]
[1766055955833,12.41427673,123.81,123.77,0.66]
[1766055956034,8.64689201,123.81,123.78,0.66]
[1766055956541,0.57,123.8,123.77,0.66]
[1766055958022,8.07778355,123.8,123.77,0.66]
[1766055958344,8.07778355,123.8,123.76,3.76738472]
[1766055958345,0.57,123.79,123.76,0.66]
[1766055960234,8.64819791,123.79,123.76,0.66]
[1766055960435,0.57,123.78,123.74,8.84]
[1766055960611,0.57,123.78,123.74,9.5]
[1766055960936,0.57,123.76,123.73,0.66]
[1766055961135,0.57,123.75,123.72,0.66]
[1766055961343,0.57,123.75,123.71,13.26738472]
[1766055961726,0.57,123.75,123.72,0.66]
[1766055963541,8.65044444,123.76,123.73,0.66]
[1766055964521,12.41782916,123.76,123.73,0.66]
[1766055964721,0.57,123.75,123.72,0.66]
[1766055966646,4.22172715,123.77,123.72,11.85000552]
[1766055966945,4.22172715,123.77,123.74,0.66]
[1766055967251,4.79172715,123.77,123.74,0.66]
[1766055968928,4.22172715,123.77,123.74,0.66]
[1766055969135,4.79172715,123.77,123.74,0.66]
[1766055969760,4.22172715,123.77,123.75,0.66]
[1766055970437,8.64921589,123.78,123.75,4.42738472]
[1766055971263,8.64921589,123.78,123.75,0.66]
[1766055974965,0.57,123.77,123.74,4.41738472]
[1766055975448,8.64921589,123.78,123.75,0.65]
[1766055975647,0.57,123.78,123.75,0.65]
[1766055976436,0.57,123.78,123.75,4.41738472]
[1766055976637,12.86217186,123.79,123.76,0.65]
[1766055977052,12.29220131,123.79,123.74,8.0814187]
[1766055977249,12.29220131,123.79,123.75,3.76738472]
[1766055977450,12.86220131,123.79,123.76,0.65]
[1766055978457,4.21367835,123.79,123.77,0.65]
[1766055978758,0.57,123.8,123.77,0.65]
[1766055978938,0.57,123.8,123.76,2.41038048]
[1766055978939,12.29126989,123.8,123.76,2.41038048]
[1766055979262,0.57,123.79,123.76,3.06038048]
[1766055980761,0.57,123.78,123.74,3.06038048]
[1766055980954,0.57,123.78,123.75,0.65]
[1766055981155,6.00669129,123.78,123.75,0.65]
[1766055981638,13.51563447,123.78,123.72,8.08261548]
[1766055981843,0.57,123.77,123.74,3.06038048]
[1766055982255,8.07894318,123.78,123.75,0.65]
[1766055982256,8.64894318,123.78,123.75,0.65]
[1766055982441,0.57,123.78,123.75,3.06038048]
[1766055982642,8.64885376,123.78,123.75,0.65]
[1766055982842,8.64885376,123.78,123.75,3.06038048]
[1766055983548,8.64885376,123.78,123.75,3.06038226]
[1766055983745,8.64885376,123.78,123.75,0.65]
[1766055983945,10.48923602,123.78,123.71,8.84]
[1766055984146,10.48923602,123.78,123.73,0.65]
[1766055984147,0.57,123.76,123.73,0.65]
[1766055984350,2.98038226,123.77,123.73,0.65]
[1766055984552,0.57,123.77,123.74,0.65]
[1766055984774,0.57,123.76,123.72,3.06038226]
[1766055985554,0.57,123.76,123.73,0.65]
[1766055989269,0.57,123.76,123.72,3.06038226]
[1766055989489,0.57,123.74,123.69,0.65]
[1766055989648,8.84,123.74,123.69,0.65]
[1766055989979,6.00603031,123.73,123.69,0.65]
[1766055990646,2.98038226,123.75,123.71,0.53001129]
[1766055990861,5.43264742,123.75,123.72,2.41038226]
[1766055991264,14.2025395,123.76,123.69,28.29602694]
[1766055991570,8.77030407,123.76,123.72,2.41038226]
[1766055992968,16.91982014,123.77,123.73,0.65]
[1766055993162,0.69,123.76,123.73,0.65]
[1766055993967,0.69,123.75,123.72,0.65]
[1766055994761,0.69,123.76,123.72,0.65]
[1766055996045,8.77027121,123.76,123.72,0.65]
[1766055996868,0.69,123.76,123.73,0.65]
[1766055998070,8.77015516,123.76,123.73,0.65]
[1766055998672,0.69,123.76,123.73,0.65]
[1766055998981,17.60980374,123.77,123.73,0.65]
[1766055999174,0.69,123.76,123.73,0.65]
[1766056000477,19.330186,123.77,123.74,0.65]
[1766056000478,8.76980374,123.77,123.74,0.65]
[1766056000658,17.60980374,123.77,123.74,0.65]
[1766056000968,17.60980374,123.77,123.74,3.06038226]
[1766056001872,17.60980374,123.77,123.74,0.65]
[1766056005074,20.020186,123.77,123.74,0.65]
[1766056005573,0.65,123.76,123.73,0.72]
[1766056006676,0.65,123.75,123.72,3.13038226]
[1766056006855,0.65,123.75,123.71,3.13038226]
[1766056007058,0.65,123.75,123.71,0.72]
[1766056007275,0.65,123.75,123.72,0.72]
[1766056007761,0.65,123.75,123.72,3.13038226]
[1766056009379,8.7308461,123.75,123.72,3.13038226]
[1766056009972,8.7308461,123.75,123.72,0.72]
[1766056012680,21.13135986,123.76,123.72,2.41038226]
[1766056012852,21.78135986,123.76,123.74,0.72]
[1766056013054,21.78135986,123.76,123.73,3.13038226]
[1766056013283,17.57048846,123.76,123.73,0.72]
[1766056013670,0.65,123.75,123.73,0.72]
[1766056014073,0.65,123.75,123.72,0.72]
[1766056014379,8.73093371,123.75,123.72,0.72]
[1766056015875,8.73088068,123.75,123.72,0.72]
[1766056018786,0.65,123.74,123.72,0.72]
[1766056018965,8.08088068,123.75,123.72,0.72]
[1766056019168,8.73088068,123.75,123.72,0.72]
[1766056021782,0.65,123.75,123.72,0.72]
[1766056022181,16.92022732,123.76,123.73,0.72]
[1766056022373,0.65,123.75,123.71,3.13038226]
[1766056022572,0.65,123.75,123.71,0.72]
[1766056022573,3.06038226,123.74,123.71,0.72]
[1766056022791,11.14192465,123.74,123.71,0.72]
[1766056023181,0.65,123.73,123.7,0.72]
[1766056023793,8.73154239,123.74,123.7,0.72]
[1766056024101,8.73154239,123.74,123.71,0.72]
[1766056026283,0.65,123.74,123.71,0.72]
[1766056026498,14.16734305,123.74,123.71,0.72]
[1766056026701,2.41038226,123.75,123.71,0.72]
[1766056026884,16.57714015,123.75,123.71,0.72]
[1766056027084,5.43569303,123.74,123.71,0.72]
[1766056028005,6.08569303,123.74,123.71,0.72]
[1766056028982,5.43569303,123.74,123.72,0.72]
[1766056029186,13.51675789,123.75,123.72,0.72]
[1766056029386,14.16675789,123.75,123.72,0.72]
[1766056029586,3.06038226,123.73,123.7,0.72]
[1766056030289,3.06038226,123.73,123.69,0.72]
[1766056030290,0.65,123.72,123.69,0.72]
[1766056031105,8.73284139,123.72,123.69,0.72]
[1766056031405,3.06038226,123.72,123.69,0.72]
[1766056031615,0.65,123.72,123.69,0.72]
[1766056032489,19.33292979,123.73,123.69,0.72]
[1766056032689,20.00292979,123.73,123.69,0.72]
[1766056033206,0.67,123.73,123.69,2.41038226]
[1766056033398,6.10308181,123.74,123.71,0.67]
[1766056033710,0.67,123.73,123.7,0.67]
[1766056033909,2.41038226,123.73,123.7,0.67]
[1766056034086,2.41038226,123.73,123.69,0.67]
[1766056034087,0.67,123.72,123.69,0.67]
[1766056034900,7.84402336,123.73,123.69,0.67]
[1766056035209,8.51402336,123.73,123.69,0.67]
[1766056035603,16.5961827,123.73,123.69,0.67]
[1766056035801,11.1625416,123.73,123.69,0.67]
[1766056036208,0.67,123.72,123.69,0.67]
[1766056037209,11.1625416,123.73,123.69,0.67]
[1766056037412,8.75215934,123.73,123.69,4.44007788]
[1766056037613,0.67,123.73,123.7,0.67]
[1766056037911,6.10397324,123.73,123.7,0.67]
[1766056038216,8.7522777,123.73,123.7,0.67]
[1766056038592,0.67,123.74,123.71,0.67]
[1766056038810,17.95600396,123.74,123.71,0.67]
[1766056039009,4.44007788,123.74,123.71,0.67]
[1766056039201,9.87427424,123.74,123.71,0.67]
[1766056040307,8.75114705,123.75,123.72,0.67]
[1766056040617,12.52122493,123.75,123.72,0.67]
[1766056041420,4.44007788,123.74,123.71,0.67]
[1766056041618,0.67,123.74,123.71,0.67]
[1766056044316,8.75150108,123.74,123.71,0.67]
[1766056045111,0.67,123.74,123.71,0.67]
[1766056045522,8.08115598,123.75,123.72,0.67]
[1766056045701,23.02639418,123.75,123.72,0.67]
[1766056046016,21.36123386,123.75,123.72,0.67]
[1766056047228,5.43529406,123.74,123.72,0.67]
[1766056047519,6.10421698,123.74,123.72,0.67]
[1766056048202,0.67,123.74,123.72,0.67]
[1766056048404,17.59115598,123.75,123.72,0.67]
[1766056051010,21.36123386,123.75,123.72,0.67]
[1766056051622,5.43697641,123.74,123.72,0.67]
[1766056052224,6.10697641,123.74,123.72,0.67]
[1766056052805,13.51868244,123.74,123.72,0.67]
[1766056053905,14.18868244,123.74,123.72,0.67]
[1766056054223,8.75170603,123.74,123.72,0.67]
[1766056055427,8.08170603,123.74,123.72,0.67]
[1766056055728,13.51926522,123.74,123.72,0.67]
[1766056056724,5.43755919,123.74,123.72,0.67]
[1766056057514,13.51918948,123.74,123.72,0.67]
[1766056058711,40.39501646,123.78,123.73,3.76873381]
[1766056058712,0.67,123.78,123.73,3.76873381]
[1766056058932,0.67,123.78,123.74,3.76873381]
[1766056059144,0.67,123.78,123.71,8.84]
[1766056059458,0.67,123.78,123.73,3.76873381]
[1766056059946,0.67,123.77,123.73,3.76873381]
[1766056060627,0.67,123.77,123.72,8.08230434]
[1766056060844,0.67,123.77,123.73,3.76873381]
[1766056061206,3.76873381,123.77,123.72,11.85103815]
[1766056061409,0.67,123.76,123.71,16.9231896]
[1766056061626,0.67,123.75,123.71,12.60873381]
[1766056061838,0.67,123.75,123.71,8.84]
[1766056062138,0.67,123.75,123.72,3.76873381]
[1766056062817,0.67,123.75,123.71,8.84]
[1766056063035,8.75085843,123.75,123.72,3.76873381]
[1766056063405,8.08085843,123.75,123.72,3.76873381]
[1766056063600,0.67,123.74,123.72,3.76873381]
[1766056064138,8.75085843,123.75,123.72,3.76873381]
[1766056064829,8.08085843,123.75,123.72,3.76873381]
[1766056065127,0.67,123.74,123.72,3.76873381]
[1766056066209,0.67,123.74,123.71,8.84]
[1766056066210,0.67,123.74,123.71,12.60873381]
[1766056070265,0.67,123.73,123.71,8.84]
[1766056072313,0.67,123.74,123.71,8.84]
[1766056072515,0.67,123.73,123.7,3.76873381]
[1766056072824,8.75230326,123.73,123.7,3.76873381]
[1766056073025,8.75230326,123.73,123.69,3.76873381]
[1766056073338,3.76873381,123.74,123.7,3.76873381]
[1766056073339,8.75179185,123.74,123.7,3.76873381]
[1766056073533,0.67,123.73,123.7,3.76873381]
[1766056078142,0.67,123.73,123.69,8.08470834]
[1766056078337,0.67,123.73,123.7,3.76873381]
[1766056079232,0.67,123.73,123.67,0.67]
[1766056079233,0.67,123.72,123.67,0.67]
[1766056079437,0.67,123.72,123.69,4.43873381]
[1766056079736,3.76873381,123.74,123.7,4.43873381]
[1766056079737,0.67,123.73,123.7,4.43873381]
[1766056080116,6.10894551,123.73,123.7,4.43873381]
[1766056080547,6.10894551,123.73,123.7,0.67]
[1766056080716,6.10894551,123.73,123.7,4.43873381]
[1766056081352,6.10894551,123.73,123.7,0.67]
[1766056081722,0.67,123.72,123.67,9.51]
[1766056082046,0.67,123.71,123.67,13.27873381]
[1766056082818,0.67,123.71,123.67,12.60873381]
[1766056083113,0.67,123.71,123.68,0.67]
[1766056083629,0.67,123.71,123.67,13.27873381]
[1766056084218,0.67,123.7,123.67,9.51]
[1766056084430,0.67,123.7,123.67,8.84]
[1766056084646,0.67,123.7,123.67,9.51]
[1766056085028,0.67,123.7,123.67,13.27873381]
[1766056085237,0.67,123.7,123.67,9.51]
[1766056085529,0.67,123.7,123.67,13.27873381]
[1766056086458,0.67,123.7,123.67,9.51]
[1766056086757,0.67,123.7,123.66,3.76873381]
[1766056086758,0.67,123.69,123.66,3.76873381]
[1766056087337,0.67,123.69,123.66,4.43873381]
[1766056088141,0.67,123.69,123.66,0.67]
[1766056088341,0.67,123.69,123.66,4.43873381]
[1766056089930,0.67,123.69,123.66,3.76873381]
[1766056090136,0.67,123.69,123.66,4.43873381]
[1766056090857,0.67,123.69,123.66,3.76873381]
[1766056091060,0.67,123.69,123.66,4.43873381]
[1766056091567,0.67,123.68,123.65,0.1]
[1766056092861,0.67,123.67,123.65,0.1]
[1766056094954,0.7,123.69,123.66,4.43873381]
[1766056095260,0.7,123.69,123.67,0.67]
[1766056095444,0.7,123.69,123.66,4.43873381]
[1766056096646,0.7,123.69,123.65,0.77]
[1766056096850,0.7,123.69,123.65,3.86873381]
[1766056097142,0.7,123.71,123.67,3.76873381]
[1766056097343,0.7,123.72,123.69,4.43873381]
[1766056097646,0.7,123.72,123.69,0.67]
[1766056098062,0.7,123.72,123.69,4.43873381]
[1766056099369,0.7,123.72,123.69,3.08233375]
[1766056100465,8.0828527,123.72,123.68,2.41233375]
[1766056100768,0.7,123.71,123.67,3.08233375]
[1766056101068,0.7,123.7,123.66,9.53]
[1766056101284,0.7,123.7,123.66,8.86]
[1766056101503,0.7,123.7,123.65,3.18233375]
[1766056101504,0.7,123.69,123.65,3.18233375]
[1766056103388,0.7,123.68,123.65,3.18233375]
[1766056109184,0.7,123.69,123.66,3.08233375]
[1766056110192,0.7,123.69,123.66,2.41233375]
[1766056110577,0.7,123.68,123.66,2.41233375]
[1766056111284,0.7,123.68,123.65,0.77]
[1766056111474,31.480886,123.71,123.66,3.08233375]
[1766056112492,39.5623645,123.72,123.68,0.67]
[1766056112898,2.41233375,123.71,123.66,3.08233375]
[1766056113596,0.7,123.7,123.66,3.08233375]
[1766056114001,0.7,123.69,123.67,0.67]
[1766056115593,0.7,123.69,123.65,0.1]
[1766056115799,0.7,123.69,123.66,0.67]
[1766056116700,0.7,123.68,123.65,0.77]
[1766056122683,0.7,123.68,123.65,3.1842491]
[1766056124278,0.68,123.69,123.66,3.1042491]
[1766056124488,8.76426917,123.7,123.67,0.69]
[1766056124675,8.76378606,123.71,123.68,0.69]
[1766056125288,0.68,123.7,123.68,0.69]
[1766056126380,0.68,123.71,123.68,2.4142491]
[1766056126581,0.68,123.71,123.69,0.69]
[1766056126807,8.08232721,123.73,123.69,0.69]
[1766056126808,6.11348431,123.72,123.69,0.69]
[1766056127099,0.68,123.72,123.69,3.1042491]
[1766056127481,0.68,123.72,123.69,0.69]
[1766056129099,0.68,123.72,123.68,10.49932657]
[1766056129300,0.68,123.72,123.69,10.49880007]
[1766056129484,12.3062503,123.74,123.69,10.49880007]
[1766056129485,0.68,123.73,123.7,0.69]
[1766056130380,12.30598957,123.74,123.67,8.77568424]
[1766056130381,32.50964239,123.74,123.67,8.77568424]
[1766056130581,0.68,123.71,123.68,0.69]
[1766056132503,0.68,123.71,123.68,3.1042491]
[1766056132705,0.68,123.71,123.69,0.69]
[1766056133901,0.68,123.72,123.69,0.69]
[1766056134599,0.68,123.72,123.68,3.1042491]
[1766056135292,0.68,123.72,123.68,0.69]
[1766056135700,0.68,123.71,123.68,0.69]
[1766056136303,0.68,123.71,123.66,0.69]
[1766056136505,0.68,123.71,123.67,2.4142491]
[1766056136706,0.68,123.71,123.68,0.69]
[1766056137920,0.68,123.71,123.66,8.08638505]
[1766056137921,0.68,123.7,123.66,2.4142491]
[1766056138119,0.68,123.69,123.66,0.69]
[1766056138330,0.68,123.69,123.65,0.79]
[1766056138522,0.68,123.68,123.65,0.79]
[1766056139531,0.68,123.69,123.66,0.69]
[1766056140335,0.68,123.68,123.65,0.79]
[1766056140703,0.68,123.68,123.65,2.5142491]
[1766056140905,0.68,123.69,123.66,0.69]
[1766056141106,0.68,123.69,123.66,3.1042491]
[1766056141318,0.68,123.69,123.66,0.69]
[1766056142949,12.31175426,123.72,123.68,0.69]
[1766056142950,12.99175426,123.72,123.68,0.69]
[1766056143253,0.68,123.71,123.68,0.69]
[1766056144026,12.98843686,123.72,123.68,0.69]
[1766056144448,12.30843686,123.72,123.69,0.69]
[1766056144645,0.68,123.71,123.69,0.69]
[1766056146240,0.68,123.71,123.68,0.69]
[1766056149474,12.30843686,123.72,123.68,0.69]
[1766056149653,0.68,123.71,123.68,0.69]
[1766056156559,4.93536921,123.72,123.69,0.67]
[1766056157356,0.71,123.74,123.71,0.67]
[1766056158167,2.4142491,123.74,123.71,0.67]
[1766056158487,0.71,123.73,123.71,0.67]
[1766056161602,0.71,123.73,123.69,11.85400039]
[1766056161603,0.71,123.72,123.69,0.67]
[1766056163292,0.71,123.71,123.69,0.67]
[1766056164396,0.71,123.72,123.69,0.67]
[1766056168590,0.71,123.73,123.7,0.67]
[1766056178520,8.08249419,123.73,123.68,16.94514933]
[1766056178706,0.71,123.72,123.69,0.67]
[1766056179113,0.71,123.72,123.68,12.62933476]
[1766056179312,0.71,123.72,123.69,0.67]
[1766056179837,0.71,123.72,123.69,4.43933476]